bitfinex-derivatives/quotes_SOLF0:USTF0_20240830
["timestamp","ask_amount","ask_price","bid_price","bid_amount"]
[1724987883332,3.6013,138.83,138.82,0.05061473]
[1724987884030,3.6016,138.82,138.78,18.32667345]
[1724987884921,11.07,138.83,138.73,60.04892901]
[1724987885125,0.05204399,138.79,138.77,0.05491329]
[1724987885525,3.6026,138.78,138.77,0.05491329]
[1724987886124,3.6032,138.76,138.73,11.07]
[1724987886630,11.07,138.79,138.73,11.07]
[1724987887142,11.07,138.79,138.75,0.05353099]
[1724987887143,0.05047717,138.77,138.75,0.05353099]
[1724987887326,3.65357717,138.77,138.75,0.05353099]
[1724987888237,3.6031,138.76,138.75,0.05353099]
[1724987889338,0.05047717,138.77,138.75,0.05353099]
[1724987889339,3.65337717,138.77,138.75,0.05353099]
[1724987889526,0.05047717,138.77,138.75,0.05353099]
[1724987890329,0.05047717,138.77,138.76,27.68]
[1724987892235,0.05047717,138.77,138.75,3.65683099]
[1724987894332,0.05047717,138.77,138.75,0.05353099]
[1724987894931,0.05047717,138.77,138.75,3.65673099]
[1724987896834,0.05047717,138.77,138.75,0.05353099]
[1724987902145,0.05047717,138.77,138.75,3.65683099]
[1724987905040,1.2806,138.82,138.75,0.05353099]
[1724987905243,1.2806,138.82,138.78,27.68]
[1724987905541,1.2806,138.82,138.76,27.68]
[1724987905741,1.3675,138.81,138.74,27.68]
[1724987905939,1.3675,138.81,138.74,31.2835]
[1724987906142,0.04994996,138.79,138.76,0.0540472]
[1724987907038,3.6029,138.77,138.76,0.0540472]
[1724987908738,3.6032,138.76,138.73,3.6038]
[1724987909741,3.65692174,138.76,138.73,3.6492648]
[1724987912748,3.65692174,138.76,138.73,14.7192648]
[1724987913838,0.05372174,138.76,138.73,14.7192648]
[1724987914646,0.05372174,138.76,138.74,3.6036]
[1724987915540,0.05372174,138.76,138.73,11.1154648]
[1724987915541,0.05372174,138.76,138.75,14.6734]
[1724987920655,0.05372174,138.76,138.75,11.07]
[1724987921253,0.05372174,138.76,138.74,3.6035]
[1724987921455,0.05372174,138.76,138.73,3.6492648]
[1724987921652,0.05372174,138.76,138.73,14.7192648]
[1724987922854,0.05372174,138.76,138.74,3.6036]
[1724987925063,0.05372174,138.76,138.75,14.6734]
[1724987925355,1.3675,138.81,138.75,11.07]
[1724987925557,3.6022,138.8,138.78,11.07]
[1724987925750,3.6022,138.8,138.77,14.6727]
[1724987926457,3.65023121,138.8,138.77,14.72284126]
[1724987927973,3.65023121,138.8,138.77,0.05014126]
[1724987928261,3.6025,138.79,138.77,0.05014126]
[1724987928450,0.04803121,138.8,138.77,11.12014126]
[1724987929459,3.65023121,138.8,138.77,14.72294126]
[1724987930955,3.6024,138.79,138.77,0.05014126]
[1724987937263,3.6026,138.78,138.77,0.05014126]
[1724987938160,3.6025,138.79,138.77,0.05014126]
[1724987938959,3.65023121,138.8,138.77,0.05014126]
[1724987939361,0.04803121,138.8,138.78,11.07]
[1724987939767,0.04803121,138.8,138.77,3.65284126]
[1724987939971,0.04803121,138.8,138.77,0.05014126]
[1724987940160,3.65033121,138.8,138.77,0.05014126]
[1724987941367,3.6023,138.79,138.77,0.05014126]
[1724987942866,11.07,138.78,138.7,3.53246378]
[1724987943069,11.07,138.78,138.72,11.07]
[1724987943262,11.07,138.78,138.72,14.58430218]
[1724987943664,3.603,138.77,138.73,3.6037]
[1724987943871,12.3915,138.78,138.72,11.07]
[1724987944173,0.05153562,138.76,138.74,0.05201067]
[1724987944373,3.65483562,138.76,138.74,0.05201067]
[1724987949778,3.6034,138.75,138.74,0.05201067]
[1724987951780,3.6041,138.73,138.66,20.90314207]
[1724987951982,3.6041,138.73,138.68,11.07]
[1724987952181,3.6041,138.73,138.67,4.74]
[1724987952182,3.6041,138.73,138.7,11.07]
[1724987952880,3.65634193,138.73,138.7,11.11736074]
[1724987953882,3.65634193,138.73,138.7,0.04736074]
[1724987956784,3.65634193,138.73,138.7,11.11736074]
[1724987957988,0.05224193,138.73,138.72,11.07]
[1724987960096,3.65614193,138.73,138.7,11.11736074]
[1724987960591,3.65614193,138.73,138.7,0.04736074]
[1724987962293,3.65614193,138.73,138.7,3.65196074]
[1724987962496,3.65614193,138.73,138.7,0.04736074]
[1724987963097,0.05224193,138.73,138.7,11.11736074]
[1724987963491,0.05224193,138.73,138.7,14.72186074]
[1724987966487,0.05224193,138.73,138.71,3.6044]
[1724987966898,0.05224193,138.73,138.72,11.07]
[1724987967500,0.05224193,138.73,138.72,14.6742]
[1724987968793,3.6027,138.78,138.74,3.6034]
[1724987968994,3.6027,138.78,138.75,11.07]
[1724987969590,3.6027,138.78,138.75,14.6733]
[1724987969997,3.65737127,138.78,138.75,14.72288548]
[1724987970499,0.05467127,138.78,138.75,11.11958548]
[1724987971405,0.05467127,138.78,138.75,14.72278548]
[1724987972200,0.05467127,138.78,138.76,3.6031]
[1724987972902,0.05467127,138.78,138.75,11.11958548]
[1724987973300,0.05467127,138.78,138.75,0.04958548]
[1724987974307,0.05467127,138.78,138.76,3.6029]
[1724987975995,0.05467127,138.78,138.66,25.23189615]
[1724987975996,11.07,138.77,138.66,25.23189615]
[1724987976202,11.07,138.75,138.68,11.07]
[1724987976406,3.604,138.73,138.68,11.07]
[1724987977007,0.0517137,138.72,138.69,0.05465484]
[1724987977209,3.6044,138.71,138.69,0.05465484]
[1724987978112,3.6047,138.7,138.69,0.05465484]
[1724987982406,3.6047,138.7,138.59,1.4123]
[1724987982407,11.07,138.7,138.59,1.4123]
[1724987982598,11.07,138.68,138.61,11.07]
[1724987982799,11.07,138.68,138.61,14.67129776]
[1724987983416,0.05169412,138.66,138.63,0.05546101]
[1724987983607,3.6061,138.65,138.63,0.05546101]
[1724987983809,3.6061,138.65,138.63,11.12546101]
[1724987984411,3.6062,138.64,138.63,0.05546101]
[1724987988617,14.6762,138.64,138.63,0.05546101]
[1724988001225,0.05169412,138.66,138.63,0.05546101]
[1724988001630,3.65749412,138.66,138.63,4.79546101]
[1724988001826,0.05169412,138.66,138.63,0.05546101]
[1724988002027,11.07,138.65,138.63,0.05546101]
[1724988002228,3.6062,138.64,138.63,0.05546101]
[1724988002434,14.6762,138.64,138.63,0.05546101]
[1724988004934,3.6062,138.64,138.63,0.05546101]
[1724988005131,14.6762,138.65,138.63,0.05546101]
[1724988006928,11.07,138.65,138.63,0.05546101]
[1724988007132,3.6062,138.64,138.63,0.05546101]
[1724988008045,14.6762,138.64,138.63,0.05546101]
[1724988008745,11.07,138.64,138.63,0.05546101]
[1724988009436,0.05169412,138.66,138.63,0.05546101]
[1724988009840,3.65759412,138.66,138.63,0.05546101]
[1724988010029,11.07,138.65,138.63,0.05546101]
[1724988010540,14.6761,138.65,138.63,0.05546101]
[1724988015836,3.6061,138.65,138.63,0.05546101]
[1724988016835,3.65749412,138.66,138.63,3.66186101]
[1724988019844,0.05169412,138.66,138.63,3.66186101]
[1724988022442,3.65739412,138.66,138.63,3.66186101]
[1724988024546,14.6762,138.64,138.63,0.05546101]
[1724988025146,3.6062,138.64,138.63,0.05546101]
[1724988030650,3.65749412,138.66,138.63,0.05546101]
[1724988030854,0.05169412,138.66,138.64,11.07]
[1724988031346,0.05169412,138.66,138.64,14.676]
[1724988031743,0.05169412,138.66,138.65,3.606]
[1724988031948,0.05169412,138.66,138.65,14.676]
[1724988032143,2.7409,138.75,138.65,60.09]
[1724988032348,13.8109,138.75,138.68,11.07]
[1724988032538,3.6042,138.72,138.68,7.18998052]
[1724988033148,0.05128714,138.71,138.69,0.0486644]
[1724988033353,0.05128714,138.71,138.69,3.6535644]
[1724988033651,0.05128714,138.71,138.69,0.0486644]
[1724988034444,0.05128714,138.71,138.7,3.6047]
[1724988034847,0.05128714,138.71,138.7,14.6747]
[1724988036346,0.05128714,138.71,138.7,3.6047]
[1724988036546,0.05128714,138.71,138.7,14.6747]
[1724988037952,0.05128714,138.71,138.69,3.6534644]
[1724988038747,0.05128714,138.71,138.69,0.0486644]
[1724988039855,3.65568714,138.71,138.69,0.0486644]
[1724988040556,0.05128714,138.71,138.69,0.0486644]
[1724988041958,3.65568714,138.71,138.69,0.0486644]
[1724988042564,0.05128714,138.71,138.69,0.0486644]
[1724988043360,0.05128714,138.71,138.69,3.6534644]
[1724988044050,0.05128714,138.71,138.7,3.6047]
[1724988044249,0.05128714,138.71,138.7,14.6747]
[1724988044656,0.05128714,138.71,138.7,3.6047]
[1724988046962,0.05128714,138.71,138.7,14.6747]
[1724988050865,8.8439,138.79,138.7,11.07]
[1724988051163,11.07,138.78,138.72,11.07]
[1724988051365,3.603,138.77,138.73,3.6037]
[1724988051871,0.05290685,138.76,138.74,0.05267599]
[1724988053061,3.65600685,138.76,138.74,0.05267599]
[1724988056870,0.05290685,138.76,138.74,0.05267599]
[1724988061363,0.05290685,138.76,138.75,11.07]
[1724988061571,0.05290685,138.76,138.75,14.6734]
[1724988061780,17.1141,138.83,138.77,11.07]
[1724988061971,12.3941,138.83,138.77,11.07]
[1724988062173,3.602,138.81,138.77,14.6728]
[1724988062679,0.05097373,138.8,138.78,0.05418497]
[1724988063378,3.65307373,138.8,138.78,0.05418497]
[1724988064175,0.05097373,138.8,138.79,3.6023]
[1724988064379,0.05097373,138.8,138.79,14.6723]
[1724988064582,224.0,138.93,138.79,4.72]
[1724988064583,1.2931,138.88,138.79,4.72]
[1724988064871,1.2931,138.88,138.76,3.54965407]
[1724988065073,11.07,138.86,138.79,11.07]
[1724988065274,11.07,138.86,138.8,8.38753097]
[1724988065476,3.6007,138.86,138.81,3.6018]
[1724988065670,0.05341404,138.84,138.82,0.04681776]
[1724988065875,0.05341404,138.84,138.82,3.64831776]
[1724988066375,0.05341404,138.84,138.82,11.11681776]
[1724988067370,0.05341404,138.84,138.82,0.04681776]
[1724988068378,0.05341404,138.84,138.82,3.64831776]
[1724988068976,0.05341404,138.84,138.82,14.71831776]
[1724988070276,0.05341404,138.84,138.82,0.04681776]
[1724988070674,0.05341404,138.84,138.83,11.07]
[1724988071384,0.05341404,138.84,138.83,14.6713]
[1724988072078,0.05341404,138.84,138.83,19.7113]
[1724988073388,5.04,138.92,138.86,3.6004]
[1724988073389,1.3612,138.92,138.86,3.6004]
[1724988073576,1.3612,138.92,138.86,14.6704]
[1724988073778,99.43050623,138.91,138.86,14.6704]
[1724988074477,0.04925326,138.9,138.87,3.65114383]
[1724988076388,11.11925326,138.9,138.87,0.05094383]
[1724988076574,11.11925326,138.9,138.83,5.04]
[1724988076788,11.07,138.88,138.83,3.6011]
[1724988076977,11.07,138.88,138.83,11.07]
[1724988077287,3.5999,138.89,138.85,3.6006]
[1724988077785,3.65475025,138.88,138.86,0.05498635]
[1724988078889,0.05475025,138.88,138.86,0.05498635]
[1724988079292,3.65495025,138.88,138.86,0.05498635]
[1724988079591,0.05475025,138.88,138.86,0.05498635]
[1724988081288,3.6003,138.87,138.86,0.05498635]
[1724988082093,0.05475025,138.88,138.86,0.05498635]
[1724988082094,3.65495025,138.88,138.86,0.05498635]
[1724988082596,0.05475025,138.88,138.86,0.05498635]
[1724988083189,0.05475025,138.88,138.86,3.65528635]
[1724988083589,0.05475025,138.88,138.86,0.05498635]
[1724988083789,0.05475025,138.88,138.87,11.07]
[1724988084383,0.05475025,138.88,138.86,8.69528635]
[1724988084687,0.05475025,138.88,138.86,0.05498635]
[1724988085796,3.65495025,138.88,138.86,0.05498635]
[1724988086294,3.65495025,138.88,138.86,3.65548635]
[1724988086295,0.05475025,138.88,138.86,3.65548635]
[1724988086687,0.05475025,138.88,138.86,0.05498635]
[1724988086884,3.65475025,138.88,138.86,0.05498635]
[1724988087899,0.05475025,138.88,138.86,0.05498635]
[1724988088602,0.05475025,138.88,138.84,5.04]
[1724988088898,0.05475025,138.88,138.62,120.25691649]
[1724988088899,11.07,138.85,138.76,1.276]
[1724988089103,3.6022,138.8,138.75,19.7132]
[1724988089292,11.07,138.83,138.75,19.70616907]
[1724988089795,0.04891962,138.8,138.78,0.04937003]
[1724988092997,0.04891962,138.8,138.78,31.32187003]
[1724988093610,0.04891962,138.8,138.78,27.71937003]
[1724988093800,0.04891962,138.8,138.79,3.6023]
[1724988094101,0.04891962,138.8,138.79,31.2723]
[1724988095107,0.04891962,138.8,138.79,36.3123]
[1724988096306,0.04891962,138.8,138.79,8.6423]
[1724988098406,0.04891962,138.8,138.79,5.04]
[1724988098599,0.04891962,138.8,138.78,0.04937003]
[1724988102110,3.65121962,138.8,138.78,0.04937003]
[1724988102310,0.04891962,138.8,138.78,0.04937003]
[1724988102610,0.04891962,138.8,138.78,3.65197003]
[1724988105222,0.04891962,138.8,138.79,3.6023]
[1724988105909,0.04891962,138.8,138.78,0.04937003]
[1724988109411,3.65101962,138.8,138.78,0.04937003]
[1724988111526,0.04891962,138.8,138.74,3.6035]
[1724988112424,0.04891962,138.8,138.76,0.0522718]
[1724988112828,3.603,138.77,138.76,0.0522718]
[1724988113836,27.71891962,138.8,138.7,30.1667]
[1724988114022,11.08,138.76,138.7,5.2]
[1724988114217,1.3216,138.75,138.68,14.685]
[1724988114629,1.3216,138.75,138.68,19.885]
[1724988114824,1.3216,138.75,138.68,23.5323977]
[1724988115031,3.6043,138.72,138.7,0.04988653]
[1724988115626,3.6044,138.71,138.7,0.04988653]
[1724988115827,0.04825324,138.73,138.7,0.04988653]
[1724988116133,3.6043,138.72,138.7,0.04988653]
[1724988116530,0.04825324,138.73,138.7,0.04988653]
[1724988116730,3.6042,138.72,138.7,0.04988653]
[1724988117331,3.65225324,138.73,138.7,0.04988653]
[1724988119730,0.04825324,138.73,138.7,3.65448653]
[1724988120442,3.65225324,138.73,138.7,0.04988653]
[1724988120633,0.04825324,138.73,138.7,0.04988653]
[1724988121237,0.04825324,138.73,138.7,27.75988653]
[1724988121442,0.04825324,138.73,138.71,27.71]
[1724988122344,0.04825324,138.73,138.72,3.6042]
[1724988124236,3.6027,138.78,138.74,3.6036]
[1724988124431,1.3198,138.8,138.73,27.71]
[1724988124934,3.6028,138.78,138.74,3.6034]
[1724988125139,1.3198,138.8,138.74,3.6034]
[1724988125334,0.04764159,138.78,138.76,0.05439851]
[1724988125536,3.6029,138.77,138.76,0.05439851]
[1724988126248,0.04764159,138.78,138.7,32.91]
[1724988126249,3.6034,138.75,138.7,32.91]
[1724988126446,27.71,138.79,138.7,27.71]
[1724988126652,27.71,138.79,138.71,3.6043]
[1724988126943,3.6034,138.75,138.71,3.6043]
[1724988127253,0.04905647,138.74,138.72,0.04871412]
[1724988128354,0.04905647,138.74,138.72,27.75871412]
[1724988128647,0.04905647,138.74,138.73,31.3139]
[1724988129549,0.04905647,138.74,138.73,36.3939]
[1724988129745,0.04905647,138.74,138.73,3.6039]
[1724988130946,0.04905647,138.74,138.72,31.36261412]
[1724988131247,0.04905647,138.74,138.72,0.04871412]
[1724988133244,3.6039,138.73,138.72,0.04871412]
[1724988133857,4.8891,138.73,138.72,0.04871412]
[1724988134349,3.6043,138.72,138.68,31.315]
[1724988135649,3.6043,138.72,138.69,0.04745685]
[1724988139262,3.6043,138.72,138.69,3.65235685]
[1724988139464,4.8892,138.73,138.69,3.65235685]
[1724988140862,1.2852,138.73,138.7,3.6046]
[1724988141571,1.2852,138.73,138.69,0.04745685]
[1724988141766,1.2852,138.73,138.64,1.4039]
[1724988141767,1.2852,138.73,138.64,27.71]
[1724988141958,3.6048,138.7,138.66,3.6056]
[1724988142365,3.6048,138.7,138.64,27.71]
[1724988142366,3.6049,138.69,138.64,3.606]
[1724988142562,1.3308,138.69,138.64,3.606]
[1724988142870,0.04775779,138.68,138.65,0.04553736]
[1724988143464,0.04775779,138.68,138.65,3.65143736]
[1724988144364,0.04775779,138.68,138.65,0.04553736]
[1724988145261,0.04775779,138.68,138.66,3.6056]
[1724988147074,0.04775779,138.68,138.67,3.6055]
[1724988148366,0.04775779,138.68,138.65,5.12553736]
[1724988148571,0.04775779,138.68,138.66,3.6056]
[1724988148966,0.04775779,138.68,138.65,8.73153736]
[1724988149162,0.04775779,138.68,138.65,3.65153736]
[1724988149971,3.65295779,138.68,138.65,0.04553736]
[1724988150571,0.04775779,138.68,138.65,3.65143736]
[1724988151076,0.04775779,138.68,138.65,0.04553736]
[1724988151464,3.65295779,138.68,138.65,0.04553736]
[1724988152471,0.04775779,138.68,138.65,0.04553736]
[1724988152872,0.04775779,138.68,138.65,3.65123736]
[1724988153167,0.04775779,138.68,138.65,0.04553736]
[1724988153372,0.04775779,138.68,138.67,3.6055]
[1724988153572,0.04775779,138.68,138.66,27.71]
[1724988154466,0.04775779,138.68,138.65,3.65143736]
[1724988156875,3.65295779,138.68,138.65,0.04553736]
[1724988157076,0.04775779,138.68,138.65,0.04553736]
[1724988157480,0.04775779,138.68,138.65,3.65133736]
[1724988158379,3.65295779,138.68,138.65,0.04553736]
[1724988158780,0.04775779,138.68,138.65,0.04553736]
[1724988159273,0.04775779,138.68,138.65,3.65143736]
[1724988160773,3.65295779,138.68,138.65,0.04553736]
[1724988161576,0.04775779,138.68,138.65,0.04553736]
[1724988162179,0.04775779,138.68,138.65,3.65133736]
[1724988163275,3.65295779,138.68,138.65,3.65133736]
[1724988164677,0.04775779,138.68,138.65,3.65133736]
[1724988167580,0.04775779,138.68,138.65,0.04553736]
[1724988170286,3.6055,138.67,138.65,0.04553736]
[1724988170783,0.04775779,138.68,138.65,3.65133736]
[1724988173481,0.04775779,138.68,138.66,3.6057]
[1724988176787,3.65305779,138.68,138.65,0.04553736]
[1724988180100,3.65305779,138.68,138.65,3.65143736]
[1724988180797,0.04775779,138.68,138.66,3.6056]
[1724988180997,2.6575,138.73,138.67,27.71]
[1724988181206,1.2852,138.73,138.67,31.28117443]
[1724988181499,1.2852,138.73,138.67,27.71]
[1724988182105,0.0544885,138.71,138.69,11.13124543]
[1724988184111,0.0544885,138.71,138.69,0.05124543]
[1724988185210,0.0544885,138.71,138.69,3.65604543]
[1724988186212,3.6588885,138.71,138.69,3.65604543]
[1724988189117,3.6588885,138.71,138.69,0.05124543]
[1724988190716,3.6047,138.7,138.69,0.05124543]
[1724988191216,0.0544885,138.71,138.69,0.05124543]
[1724988191416,3.6589885,138.71,138.69,0.05124543]
[1724988191713,0.0544885,138.71,138.69,0.05124543]
[1724988191911,3.6047,138.7,138.69,0.05124543]
[1724988192321,0.0544885,138.71,138.63,32.48]
[1724988192615,33.7652,138.73,138.64,3.6061]
[1724988193118,33.7652,138.73,138.61,6.0933]
[1724988193119,3.6059,138.66,138.61,32.48]
[1724988193422,0.04656852,138.65,138.62,0.05531857]
[1724988194615,3.65276852,138.65,138.62,0.05531857]
[1724988194816,0.04656852,138.65,138.62,0.05531857]
[1724988195015,3.6065,138.63,138.62,0.05531857]
[1724988195315,3.6065,138.63,138.54,27.7]
[1724988195316,4.78,138.63,138.54,27.7]
[1724988195519,7.4825,138.62,138.54,27.7]
[1724988196022,3.6078,138.59,138.54,31.3086]
[1724988196209,0.04902626,138.58,138.55,0.03252086]
[1724988196612,0.04902626,138.58,138.55,3.64112086]
[1724988198414,0.04902626,138.58,138.56,3.6083]
[1724988198614,0.04902626,138.58,138.55,0.03252086]
[1724988199616,0.04902626,138.58,138.56,31.3081]
[1724988201920,0.04902626,138.58,138.57,3.6081]
[1724988202127,423.98116385,138.71,138.56,27.7]
[1724988202326,6.1595,138.67,138.6,27.7]
[1724988202620,33.8595,138.67,138.58,27.7]
[1724988202821,4.78,138.66,138.58,27.7]
[1724988203122,0.04970178,138.63,138.61,0.05121528]
[1724988206417,0.04970178,138.63,138.61,3.65821528]
[1724988207327,0.04970178,138.63,138.62,3.6068]
[1724988207534,0.04970178,138.63,138.61,0.05121528]
[1724988208331,0.04970178,138.63,138.61,3.65811528]
[1724988208837,0.04970178,138.63,138.61,0.05121528]
[1724988209027,0.04970178,138.63,138.61,3.65821528]
[1724988209821,0.04970178,138.63,138.62,3.6068]
[1724988210026,0.04970178,138.63,138.62,14.6768]
[1724988217025,0.04970178,138.63,138.62,11.07]
[1724988217423,0.04970178,138.63,138.61,14.72811528]
[1724988217625,0.04970178,138.63,138.61,11.12121528]
[1724988218232,0.04970178,138.63,138.61,14.72821528]
[1724988220338,0.04970178,138.63,138.62,14.6768]
[1724988220634,13.8256,138.69,138.62,11.07]
[1724988220635,2.7556,138.69,138.62,11.07]
[1724988220832,6.3607,138.69,138.65,14.6758]
[1724988221233,3.6054,138.68,138.65,11.07]
[1724988221435,2.7556,138.69,138.64,14.6761]
[1724988221739,3.6057,138.66,138.65,0.05514941]
[1724988229237,11.07,138.67,138.61,11.07]
[1724988229935,3.6065,138.63,138.61,11.07]
[1724988230142,3.66078477,138.63,138.61,0.04963154]
[1724988230342,0.05428477,138.63,138.61,0.04963154]
[1724988230544,3.6068,138.62,138.61,0.04963154]
[1724988231043,3.66088477,138.63,138.61,0.04963154]
[1724988231238,0.05428477,138.63,138.61,11.11963154]
[1724988233138,3.66078477,138.63,138.61,11.11963154]
[1724988233541,0.05428477,138.63,138.61,11.11963154]
[1724988233742,3.66088477,138.63,138.61,11.11963154]
[1724988238245,0.05428477,138.63,138.61,11.11963154]
[1724988238745,3.66078477,138.63,138.61,11.11963154]
[1724988240143,0.05428477,138.63,138.61,14.72663154]
[1724988240344,0.05428477,138.63,138.62,11.07]
[1724988244553,0.05428477,138.63,138.62,14.6768]
[1724988249158,559.0,138.74,138.68,3.6051]
[1724988249454,5.08,138.77,138.62,7.4744]
[1724988249656,5.08,138.78,138.73,11.07]
[1724988249850,13.8086,138.79,138.73,11.07]
[1724988250051,3.6031,138.76,138.75,0.04962059]
[1724988250250,11.07,138.76,138.69,11.07]
[1724988250453,11.07,138.75,138.69,11.07]
[1724988251353,11.07,138.73,138.71,0.04701165]
[1724988251658,11.12270123,138.73,138.67,11.07]
[1724988252046,14.72680123,138.73,138.68,3.605]
[1724988252659,14.72680123,138.73,138.69,3.63865202]
[1724988254861,14.72680123,138.73,138.7,3.6045]
[1724988254862,0.05270123,138.73,138.7,3.6045]
[1724988257363,0.05270123,138.73,138.71,3.6043]
[1724988260863,0.05270123,138.73,138.7,3.6046]
[1724988261061,0.05270123,138.73,138.69,0.03375202]
[1724988261471,0.05270123,138.73,138.71,3.6044]
[1724988264571,0.05270123,138.73,138.7,3.6046]
[1724988265466,11.12270123,138.73,138.69,0.03375202]
[1724988266876,3.6043,138.72,138.69,0.03375202]
[1724988267173,11.07,138.72,138.69,0.03375202]
[1724988267372,11.07,138.7,138.69,0.03375202]
[1724988267575,11.07,138.7,138.62,11.07]
[1724988267966,11.07,138.7,138.65,3.6058]
[1724988268462,0.05525433,138.69,138.65,3.6058]
[1724988269365,3.6052,138.68,138.65,3.6058]
[1724988270166,3.6055,138.67,138.64,3.6062]
[1724988275171,3.6053,138.68,138.62,11.07]
[1724988275375,0.0473059,138.66,138.64,11.07]
[1724988275974,2.57,138.73,138.65,11.07]
[1724988276174,7.65,138.73,138.67,11.07]
[1724988276679,3.6044,138.72,138.68,3.605]
[1724988276979,0.04570806,138.71,138.69,0.0473059]
[1724988277370,0.04570806,138.71,138.69,3.6520059]
[1724988277573,0.04570806,138.71,138.69,14.7220059]
[1724988277775,0.04570806,138.71,138.69,11.1173059]
[1724988277974,0.04570806,138.71,138.7,3.6047]
[1724988279884,0.04570806,138.71,138.69,14.7221059]
[1724988283575,0.04570806,138.71,138.69,0.0473059]
[1724988285779,11.11570806,138.71,138.69,0.0473059]
[1724988286284,3.6047,138.7,138.69,0.0473059]
[1724988286782,17.54220806,138.71,138.64,11.07]
[1724988286991,3.6055,138.67,138.63,3.6063]
[1724988287786,0.04925962,138.66,138.63,3.6063]
[1724988289083,0.04925962,138.66,138.62,12.4264]
[1724988289288,0.04925962,138.66,138.55,1.2018]
[1724988289289,0.04925962,138.66,138.6,11.07]
[1724988289584,0.04925962,138.66,138.59,5.1]
[1724988289777,0.04925962,138.66,138.6,11.07]
[1724988290289,3.6062,138.64,138.6,14.6772]
[1724988293084,3.6062,138.64,138.6,3.6072]
[1724988293390,0.04925962,138.66,138.6,11.07]
[1724988294092,0.04925962,138.66,138.59,5.1]
[1724988294395,11.07,138.65,138.58,11.07]
[1724988294692,0.05342955,138.63,138.58,11.07]
[1724988294889,3.607,138.61,138.58,14.6778]
[1724988295088,0.05342955,138.63,138.58,14.6778]
[1724988295588,3.6069,138.62,138.58,14.6778]
[1724988296991,3.607,138.61,138.58,14.6778]
[1724988298685,3.6068,138.62,138.58,14.6778]
[1724988299085,0.05342955,138.63,138.59,14.6775]
[1724988299288,3.66002955,138.63,138.59,14.6775]
[1724988299695,3.66002955,138.63,138.59,3.6075]
[1724988299994,3.66002955,138.63,138.6,11.07]
[1724988300603,0.05342955,138.63,138.6,14.6772]
[1724988300793,0.05342955,138.63,138.61,11.07]
[1724988300997,0.05342955,138.63,138.62,11.07]
[1724988301198,0.05342955,138.63,138.62,14.6768]
[1724988303304,3.6055,138.67,138.63,3.6064]
[1724988303501,3.6055,138.67,138.62,11.07]
[1724988304003,3.6055,138.67,138.62,14.6766]
[1724988304203,3.6053,138.68,138.64,11.07]
[1724988304404,0.05109488,138.67,138.65,0.04811598]
[1724988306194,0.05109488,138.67,138.65,3.65401598]
[1724988306504,0.05109488,138.67,138.65,0.04811598]
[1724988306897,0.05109488,138.67,138.65,3.65401598]
[1724988308305,0.05109488,138.67,138.65,0.04811598]
[1724988309905,3.65669488,138.67,138.65,0.04811598]
[1724988310403,0.05109488,138.67,138.65,0.04811598]
[1724988313207,0.05109488,138.67,138.65,3.65391598]
[1724988314309,0.05109488,138.67,138.65,0.04811598]
[1724988314913,0.05109488,138.67,138.65,3.65401598]
[1724988315116,0.05109488,138.67,138.65,0.04811598]
[1724988315606,3.65669488,138.67,138.65,0.04811598]
[1724988315909,0.05109488,138.67,138.65,0.04811598]
[1724988317407,3.6057,138.66,138.65,0.04811598]
[1724988318108,3.6063,138.64,138.61,3.6069]
[1724988318417,3.6063,138.64,138.59,11.07]
[1724988318418,12.3887,138.66,138.62,3.6067]
[1724988318614,3.6062,138.65,138.62,3.6067]
[1724988319017,3.66010146,138.65,138.62,3.6067]
[1724988319822,0.05390146,138.65,138.63,3.6063]
[1724988320312,3.65990146,138.65,138.62,3.6067]
[1724988320814,0.05390146,138.65,138.63,3.6064]
[1724988322507,0.05390146,138.65,138.63,14.6764]
[1724988323009,0.05390146,138.65,138.61,3.66633006]
[1724988323010,3.66000146,138.65,138.62,14.6767]
[1724988324514,0.05390146,138.65,138.62,14.6767]
[1724988325514,3.66010146,138.65,138.62,11.07]
[1724988327419,3.66010146,138.65,138.62,14.6767]
[1724988331316,0.05390146,138.65,138.62,14.6767]
[1724988331618,0.05390146,138.65,138.63,3.6064]
[1724988331821,0.05390146,138.65,138.63,14.6764]
[1724988332020,0.05390146,138.65,138.64,3.6062]